[Event "Maria Albulet Memorial 2017"]
[Site "Braila"]
[Date "2017.10.10"]
[Round "5"]
[White "Popa, Catalina-Elena"]
[Black "Patru, Alexandra-Ioana"]
[Result "1-0"]
[ECO "C47"]
[WhiteElo "1731"]
[BlackElo "1623"]
[Annotator "NA"]
[PlyCount "69"]
[EventDate "2017.??.??"]
[EventCountry "ROU"]
[SourceTitle "playchess.com"]
[Source "ChessBase"]
[SourceQuality "1"]
[TimeControl "40/5400+30:900+30"]

1. e4 {[%emt 0:00:00]} e5 {[%emt 0:00:04]} 2. Nf3 {[%emt 0:00:00]} Nc6 {[%emt 0:00:04]} 3. Nc3 {[%emt 0:00:00]} Nf6 {[%emt 0:00:06]} 4. a3 {[%emt 0:00:00]} a6 {[%emt 0:01:08]} 5. d4 {[%emt 0:00:32]} exd4 {[%emt 0:07:06]} 6. Nxd4 {[%emt 0:00:02]} d6 {[%emt 0:01:46]} 7. Be2 {[%emt 0:02:54]} Be7 {[%emt 0:02:08]} 8. Be3 {[%emt 0:00:27]} O-O {[%emt 0:01:31]} 9. Qd2 {[%emt 0:00:21]} Nxd4 {[%emt 0:25:26]} 10. Bxd4 {[%emt 0:00:21]} b5 {[%emt 0:15:15]} 11. O-O-O {[%emt 0:05:25]} Bb7 {[%emt 0:00:41]} 12. f3 {[%emt 0:01:02]} Nd7 {[%emt 0:05:44]} 13. Nd5 {[%emt 0:03:33]} Bxd5 {[%emt 0:01:13]} 14. exd5 {[%emt 0:00:02]} Bf6 {[%emt 0:02:13]} 15. Be3 {[%emt 0:02:13]} Qb8 {[%emt 0:01:00]} 16. g4 {[%emt 0:02:58]} g6 {[%emt 0:02:26]} 17. h4 {[%emt 0:01:08]} a5 {[%emt 0:02:07]} 18. g5 {[%emt 0:05:03]} Bh8 {[%emt 0:01:11]} 19. h5 {[%emt 0:03:20]} b4 {[%emt 0:00:46]} 20. a4 {[%emt 0:01:03]} b3 {[%emt 0:03:44]} 21. c3 {[%emt 0:01:04]} Qe8 {[%emt 0:01:27]} 22. Bb5 {[%emt 0:02:26]} Qc8 {[%emt 0:00:50]} 23. f4 {[%emt 0:02:44]} Re8 {[%emt 0:06:10]} 24. Bd4 {[%emt 0:03:30]} Re4 {[%emt 0:01:30]} 25. Bxh8 {[%emt 0:00:51]} Kxh8 {[%emt 0:01:00]} 26. hxg6 {[%emt 0:00:34]} fxg6 {[%emt 0:00:03]} 27. Bd3 {[%emt 0:00:30]} Rxa4 {[%emt 0:00:37]} 28. Bxg6 {[%emt 0:01:41]} Nf8 {[%emt 0:00:28]} 29. Bb1 {[%emt 0:00:53]} Ra1 {[%emt 0:02:15]} 30. Qd3 {[%emt 0:06:07]} Qg4 {[%emt 0:02:40]} 31. Qe4 {[%emt 0:12:05]} Rxb1+ {[%emt 0:02:29]} 32. Kxb1 {[%emt 0:00:21]} a4 {[%emt 0:00:17]} 33. Rdg1 {[%emt 0:01:00]} Qd7 {[%emt 0:02:02]} 34. g6 {[%emt 0:00:52]} a3 {[%emt 0:03:07]} 35. Qd4+ {[%emt 0:04:30] Qd8} 1-0

[Event "Maria Albulet Memorial 2017"]
[Site "Braila"]
[Date "2017.10.10"]
[Round "5"]
[White "Vorniceanu, Alina"]
[Black "Coman, Ana-Cristina"]
[Result "1-0"]
[ECO "C54"]
[WhiteElo "1498"]
[BlackElo "1454"]
[Annotator "NA"]
[PlyCount "157"]
[EventDate "2017.??.??"]
[EventCountry "ROU"]
[SourceTitle "playchess.com"]
[Source "ChessBase"]
[SourceQuality "1"]
[TimeControl "40/5400+30:900+30"]

1. e4 {[%emt 0:00:00]} e5 {[%emt 0:00:11]} 2. Nf3 {[%emt 0:00:00]} Nc6 {[%emt 0:00:04]} 3. Bc4 {[%emt 0:00:00]} Bc5 {[%emt 0:00:05]} 4. c3 {[%emt 0:00:00]} Nf6 {[%emt 0:00:11]} 5. d3 {[%emt 0:00:00]} h6 {[%emt 0:00:08]} 6. h3 {[%emt 0:00:00]} O-O {[%emt 0:00:16]} 7. O-O {[%emt 0:00:00]} d6 {[%emt 0:00:04]} 8. Bb3 {[%emt 0:00:00]} Be6 {[%emt 0:01:31]} 9. Bc2 {[%emt 0:00:03]} Nh7 {[%emt 0:00:39]} 10. d4 {[%emt 0:00:55]} Bc4 {[%emt 0:16:52]} 11. dxc5 {[%emt 0:00:32]} Bxf1 {[%emt 0:00:13]} 12. Qxf1 {[%emt 0:00:08]} dxc5 {[%emt 0:00:23]} 13. Be3 {[%emt 0:03:50]} Qd6 {[%emt 0:17:21]} 14. Nbd2 {[%emt 0:01:00]} a6 {[%emt 0:09:53]} 15. Rd1 {[%emt 0:01:46]} Qe7 {[%emt 0:01:32]} 16. Qc4 {[%emt 0:03:03]} b6 {[%emt 0:05:16]} 17. Qd5 {[%emt 0:01:41]} Qe8 {[%emt 0:05:19]} 18. Qd3 {[%emt 0:03:39]} Qe7 {[%emt 0:05:02]} 19. Qd5 {[%emt 0:01:38]} Qe8 {[%emt 0:00:32]} 20. Qc4 {[%emt 0:01:28]} Nf6 {[%emt 0:05:51]} 21. Qe2 {[%emt 0:04:32]} Qe7 {[%emt 0:04:46]} 22. Qc4 {[%emt 0:03:02]} Rfd8 {[%emt 0:05:37]} 23. Nh4 {[%emt 0:02:50]} Kh7 {[%emt 0:07:13]} 24. Nf5 {[%emt 0:01:57]} Qe8 {[%emt 0:01:12]} 25. Qe2 {[%emt 0:07:06]} Rd7 {[%emt 0:05:21]} 26. Qf3 {[%emt 0:00:53]} Ng8 {[%emt 0:02:59]} 27. Qg4 {[%emt 0:03:51]} f6 {[%emt 0:02:42]} 28. Nh4 {[%emt 0:03:32]} Rad8 {[%emt 0:02:17]} 29. Bb3 {[%emt 0:06:20]} Qe7 {[%emt 0:00:38]} 30. Be6 {[%emt 0:01:52]} g5 {[%emt 0:00:46]} 31. Bf5+ {[%emt 0:03:09]} Kg7 {[%emt 0:00:18]} 32. Bxd7 {[%emt 0:00:38]} Qxd7 {[%emt 0:00:17]} 33. Qxd7+ {[%emt 0:00:47]} Rxd7 {[%emt 0:00:05]} 34. Nf5+ {[%emt 0:00:05]} Kg6 {[%emt 0:00:46]} 35. h4 {[%emt 0:02:00]} Nd8 {[%emt 0:00:49]} 36. hxg5 {[%emt 0:01:19]} hxg5 {[%emt 0:00:13]} 37. g3 {[%emt 0:00:50]} Ne6 {[%emt 0:00:33]} 38. Kg2 {[%emt 0:00:26]} c6 {[%emt 0:00:52]} 39. Rh1 {[%emt 0:01:04]} Nc7 {[%emt 0:00:36]} 40. Rh8 {[%emt 0:00:00]} Kf7 {[%emt 0:00:31]} 41. Kf3 {[%emt 0:03:10]} Ne8 {[%emt 0:00:59]} 42. Rh7+ {[%emt 0:01:23]} Ke6 {[%emt 0:00:14]} 43. Rh8 {[%emt 0:00:57]} Kf7 {[%emt 0:01:51]} 44. Rh7+ {[%emt 0:02:14]} Ke6 {[%emt 0:00:10]} 45. Rxd7 {[%emt 0:00:12]} Kxd7 {[%emt 0:00:05]} 46. Nc4 {[%emt 0:00:24]} b5 {[%emt 0:00:44]} 47. Nb6+ {[%emt 0:00:31]} Kc7 {[%emt 0:00:40]} 48. Bxc5 {[%emt 0:00:11]} a5 {[%emt 0:00:22]} 49. a4 {[%emt 0:01:42]} Kd8 {[%emt 0:01:35]} 50. axb5 {[%emt 0:00:47]} cxb5 {[%emt 0:00:08]} 51. Nd5 {[%emt 0:00:05]} Kd7 {[%emt 0:00:34]} 52. Ke3 {[%emt 0:00:46]} Kc6 {[%emt 0:00:08]} 53. Ba3 {[%emt 0:00:26]} Nc7 {[%emt 0:00:13]} 54. Nxc7 {[%emt 0:00:34]} Kxc7 {[%emt 0:00:05]} 55. Bd6+ {[%emt 0:00:22]} Kc6 {[%emt 0:00:46]} 56. Bf8 {[%emt 0:00:28]} Kd7 {[%emt 0:00:25]} 57. Kd3 {[%emt 0:00:53]} Ke8 {[%emt 0:00:12]} 58. Bc5 {[%emt 0:00:41]} Kd7 {[%emt 0:00:21]} 59. b3 {[%emt 0:01:14]} Kc6 {[%emt 0:00:29]} 60. Bf8 {[%emt 0:00:11]} Kd7 {[%emt 0:00:09]} 61. c4 {[%emt 0:00:29]} b4 {[%emt 0:00:25]} 62. f3 {[%emt 0:00:15]} Ke8 {[%emt 0:00:26]} 63. Bc5 {[%emt 0:00:13]} Kd7 {[%emt 0:00:16]} 64. Bb6 {[%emt 0:00:14]} Ne7 {[%emt 0:00:15]} 65. Nxe7 {[%emt 0:00:06]} Kxe7 {[%emt 0:00:07]} 66. Bxa5 {[%emt 0:00:03]} Kd7 {[%emt 0:00:14]} 67. Bxb4 {[%emt 0:00:05]} Kc6 {[%emt 0:00:05]} 68. Be7 {[%emt 0:00:09]} Kd7 {[%emt 0:00:04]} 69. Bxf6 {[%emt 0:00:06]} Ke6 {[%emt 0:00:05]} 70. Bxg5 {[%emt 0:00:12]} Kd7 {[%emt 0:00:10]} 71. b4 {[%emt 0:00:06]} Kc6 {[%emt 0:00:04]} 72. b5+ {[%emt 0:00:16]} Kc5 {[%emt 0:00:07]} 73. Ke2 {[%emt 0:00:13]} Kb6 {[%emt 0:00:09]} 74. Be3+ {[%emt 0:00:04]} Kc7 {[%emt 0:00:10]} 75. c5 {[%emt 0:00:04]} Kb7 {[%emt 0:00:07]} 76. c6+ {[%emt 0:00:12]} Kc7 {[%emt 0:00:11]} 77. Ba7 {[%emt 0:00:09]} Kc8 {[%emt 0:00:07]} 78. b6 {[%emt 0:00:12]} Kd8 {[%emt 0:00:03]} 79. b7 {[%emt 0:00:10]} 1-0

[Event "Maria Albulet Memorial 2017"]
[Site "Braila"]
[Date "2017.10.11"]
[Round "6"]
[White "Babiy, Olga"]
[Black "Cosman, Andreea-Marioara"]
[Result "1-0"]
[ECO "B96"]
[WhiteElo "2317"]
[BlackElo "2125"]
[Annotator "NA"]
[PlyCount "53"]
[EventDate "2017.??.??"]
[EventCountry "ROU"]
[SourceTitle "playchess.com"]
[Source "ChessBase"]
[SourceQuality "1"]
[TimeControl "40/5400+30:900+30"]

1. e4 {[%emt 0:00:00]} c5 {[%emt 0:00:09]} 2. Nf3 {[%emt 0:00:00]} d6 {[%emt 0:00:04]} 3. d4 {[%emt 0:00:00]} cxd4 {[%emt 0:00:08]} 4. Nxd4 {[%emt 0:00:00]} Nf6 {[%emt 0:00:07]} 5. Nc3 {[%emt 0:00:00]} a6 {[%emt 0:00:05]} 6. Bg5 {[%emt 0:00:04]} e6 {[%emt 0:00:37]} 7. f4 {[%emt 0:00:12]} h6 {[%emt 0:03:29]} 8. Bh4 {[%emt 0:02:04]} Qb6 {[%emt 0:00:06]} 9. Qd3 {[%emt 0:06:44] LiveBook: 36 Games} Qxb2 {[%emt 0:07:47]} 10. Rb1 {[%emt 0:00:07]} Qa3 {[%emt 0:00:10]} 11. Be2 {[%emt 0:05:41]} Qa5 {[%emt 0:13:33]} 12. O-O {[%emt 0:14:24]} Be7 {[%emt 0:04:02]} 13. f5 {[%emt 0:03:56]} O-O $11 {[%emt 0:13:04]} 14. fxe6 {[%emt 0:08:08]} fxe6 {[%emt 0:01:56]} 15. Bg4 {[%emt 0:10:57]} Nxg4 {[%emt 0:27:04]} 16. Bxe7 {[%emt 0:00:16]} Rxf1+ {[%emt 0:01:10]} 17. Rxf1 {[%emt 0:00:56]} Ne5 {[%emt 0:02:22]} 18. Qg3 {[%emt 0:13:25]} Qc7 {[%emt 0:02:07]} 19. Bf8 {[%emt 0:11:37]} Kh7 {[%emt 0:18:56]} 20. Nce2 {[%emt 0:07:09]} Nbc6 {[%emt 0:00:52]} 21. c3 {[%emt 0:00:08]} b5 {[%emt 0:01:15]} 22. Nxc6 {[%emt 0:02:35]} Nxc6 {[%emt 0:00:10]} 23. Bxd6 {[%emt 0:00:10]} Qb6+ {[%emt 0:00:55]} 24. Kh1 {[%emt 0:00:13]} Ra7 {[%emt 0:00:30]} 25. Nf4 {[%emt 0:01:26]} g5 {[%emt 0:00:40]} 26. Nh5 {[%emt 0:01:12]} a5 {[%emt 0:00:30]} 27. e5 1-0

[Event "Maria Albulet Memorial 2017"]
[Site "Braila"]
[Date "2017.10.11"]
[Round "6"]
[White "Rakhmangulova, Anastasiya"]
[Black "Miladinovic, Lena"]
[Result "1/2-1/2"]
[ECO "B47"]
[WhiteElo "2242"]
[BlackElo "2138"]
[Annotator "NA"]
[PlyCount "80"]
[EventDate "2017.??.??"]
[EventCountry "ROU"]
[SourceTitle "playchess.com"]
[Source "ChessBase"]
[SourceQuality "1"]
[TimeControl "40/5400+30:900+30"]

1. e4 {[%emt 0:00:00]} c5 {[%emt 0:00:05]} 2. Nf3 {[%emt 0:00:00]} e6 {[%emt 0:00:05]} 3. d4 {[%emt 0:00:00]} cxd4 {[%emt 0:00:05]} 4. Nxd4 {[%emt 0:00:00]} Nc6 {[%emt 0:00:04]} 5. Nc3 {[%emt 0:00:00]} Qc7 {[%emt 0:00:05]} 6. Ndb5 {[%emt 0:00:07]} Qb8 {[%emt 0:00:29]} 7. Be3 {[%emt 0:00:08]} a6 {[%emt 0:02:05]} 8. Bb6 {[%emt 0:00:07]} axb5 {[%emt 0:00:56]} 9. Nxb5 {[%emt 0:00:02]} Bb4+ {[%emt 0:00:24]} 10. c3 {[%emt 0:00:06]} Ba5 {[%emt 0:00:15] B47: Sicilian: Taimanov: 5 Nc3 Qc7 6 f4, 6 g3 and 6 Be2} 11. Nc7+ {[%emt 0:00:02] [#]} Qxc7 $1 {[%emt 0:00:42]} 12. Bxc7 {[%emt 0:00:06]} Bxc7 {[%emt 0:00:04]} 13. Qg4 {[%emt 0:00:07]} Be5 {[%emt 0:02:38]} 14. f4 {[%emt 0:09:48]} Nf6 {[%emt 0:02:11]} 15. Qf3 {[%emt 0:03:40]} Bc7 {[%emt 0:01:29]} 16. e5 {[%emt 0:11:56]} Nd5 {[%emt 0:01:12]} 17. Bc4 {[%emt 0:02:02]} d6 {[%emt 0:02:18]} (17... Nce7 $11) 18. exd6 $146 {[%emt 0:14:03]} ({Predecessor:} 18. Bxd5 exd5 19. exd6 Bxd6 {0-1 (28) Martinez de Negri,A (2142)-Krysa,L (2469) Buenos Aires 2015}) 18... Bxd6 {[%emt 0:00:21]} 19. g3 {[%emt 0:02:09]} O-O {[%emt 0:08:59]} 20. O-O-O $11 {[%emt 0:02:08]} Bc7 {[%emt 0:04:53]} 21. Rhe1 {[%emt 0:04:04]} Nce7 {[%emt 0:10:03]} 22. a3 {[%emt 0:18:14]} Ra5 {[%emt 0:10:28]} 23. Bd3 {[%emt 0:01:32]} b5 {[%emt 0:05:59]} 24. Qe4 {[%emt 0:06:04]} Nf6 {[%emt 0:10:12]} 25. Qe2 {[%emt 0:03:04]} Bd7 {[%emt 0:04:25]} 26. Bxh7+ {[%emt 0:08:47]} Kxh7 {[%emt 0:09:32]} 27. Rxd7 {[%emt 0:00:06]} Nxd7 {[%emt 0:04:13]} 28. Qd3+ {[%emt 0:00:01]} Kg8 {[%emt 0:07:05]} 29. Qxd7 {[%emt 0:00:02]} Bd8 {[%emt 0:01:24]} 30. Kb1 {[%emt 0:05:14]} Nd5 {[%emt 0:02:38]} 31. f5 {[%emt 0:01:32]} Nf6 {[%emt 0:00:31]} 32. Qb7 {[%emt 0:02:14]} exf5 {[%emt 0:01:09]} 33. Ka2 {[%emt 0:02:37]} Ne4 {[%emt 0:00:28]} 34. g4 {[%emt 0:00:13]} Bf6 {[%emt 0:05:30]} 35. gxf5 {[%emt 0:01:09]} Nxc3+ {[%emt 0:00:52]} 36. bxc3 {[%emt 0:01:55]} Rfa8 {[%emt 0:00:09]} 37. Kb2 {[%emt 0:01:16]} Rxa3 {[%emt 0:04:25]} 38. Re8+ {[%emt 0:01:20]} Rxe8 {[%emt 0:00:05]} 39. Kxa3 {[%emt 0:00:04]} Re3 {[%emt 0:00:57]} 40. Qxb5 {[%emt 0:00:00]} Rxc3+ {[%emt 0:00:04]} 1/2-1/2

[Event "Maria Albulet Memorial 2017"]
[Site "Braila"]
[Date "2017.10.11"]
[Round "6"]
[White "Aciu, Malina-Andreea"]
[Black "Petrenko, Svetlana"]
[Result "0-1"]
[ECO "B07"]
[WhiteElo "2006"]
[BlackElo "2140"]
[Annotator "NA"]
[PlyCount "120"]
[EventDate "2017.??.??"]
[EventCountry "ROU"]
[SourceTitle "playchess.com"]
[Source "ChessBase"]
[SourceQuality "1"]
[TimeControl "40/5400+30:900+30"]

1. e4 {[%emt 0:00:00]} d6 {[%emt 0:00:09]} 2. d4 {[%emt 0:00:00]} Nf6 {[%emt 0:00:06]} 3. Nc3 {[%emt 0:00:00]} g6 {[%emt 0:00:32]} 4. Be3 {[%emt 0:00:00]} Bg7 {[%emt 0:01:14]} 5. Qd2 {[%emt 0:00:05]} Ng4 {[%emt 0:01:14]} 6. Bg5 {[%emt 0:01:12] LiveBook: 100 Partien} h6 {[%emt 0:01:30]} 7. Bh4 {[%emt 0:00:27]} g5 {[%emt 0:09:05]} 8. Bg3 {[%emt 0:00:26]} e5 {[%emt 0:00:08]} 9. dxe5 {[%emt 0:08:26] B07: Pirc-Ufimzew-Verteidigung} (9. Nf3 exd4 10. Nxd4 Nc6 11. Bb5 Bd7 12. Nf5 Bxf5 13. exf5 O-O 14. h4 Nd4 15. Bd3 Re8+ 16. Kf1 Qd7 17. hxg5 Nxf5 18. Bxf5 Qxf5 19. gxh6 {1-0 (29) Plenca,J (2412)-Vujakovic,B (2360) Sibenik 2016}) 9... Nxe5 {[%emt 0:00:16]} 10. O-O-O {[%emt 0:02:27]} Be6 {[%emt 0:01:42]} 11. h4 {[%emt 0:04:54]} g4 {[%emt 0:01:41]} 12. Bxe5 $146 {[%emt 0:12:11]} ({White should try Vorgänger:} 12. f4 $16 gxf3 13. Nxf3 (13. gxf3 Nbc6 14. Bb5 a6 15. Bxe5 Bxe5 16. Bxc6+ bxc6 {1-0 (76) Mester,A (2122)-Palla,G (2082) Hungary 2012})) 12... Bxe5 {[%emt 0:00:11]} 13. f4 {[%emt 0:00:10]} gxf3 {[%emt 0:04:25]} 14. Nxf3 {[%emt 0:00:17]} Nd7 {[%emt 0:06:26]} 15. Nxe5 {[%emt 0:04:09]} dxe5 {[%emt 0:02:45]} 16. Be2 {[%emt 0:13:32]} c6 {[%emt 0:13:47]} 17. Qd6 {[%emt 0:00:50]} Qb8 {[%emt 0:03:50]} 18. Qd2 {[%emt 0:20:06]} Qc7 {[%emt 0:01:41]} 19. Qe3 {[%emt 0:00:04]} Qb6 {[%emt 0:00:36]} 20. Qxb6 {[%emt 0:07:07]} Nxb6 {[%emt 0:04:40]} 21. g4 {[%emt 0:01:51]} Ke7 {[%emt 0:03:12]} 22. b3 {[%emt 0:04:51]} Rag8 {[%emt 0:08:43]} 23. Rdg1 {[%emt 0:00:52]} Nd7 {[%emt 0:01:39]} 24. Nd1 {[%emt 0:01:19]} Nf6 {[%emt 0:01:37]} 25. Nf2 {[%emt 0:00:10]} Ne8 {[%emt 0:09:02]} 26. Nd1 {[%emt 0:02:28]} Nd6 {[%emt 0:00:46]} 27. Bf3 {[%emt 0:01:13]} f6 {[%emt 0:06:05]} 28. Ne3 {[%emt 0:00:52]} b5 {[%emt 0:00:28]} 29. c3 {[%emt 0:02:31]} a5 {[%emt 0:01:40]} 30. Kb2 {[%emt 0:00:11]} a4 {[%emt 0:03:04]} 31. Rd1 {[%emt 0:02:36]} Ra8 {[%emt 0:04:18]} 32. Rhg1 {[%emt 0:03:08]} Ra6 {[%emt 0:02:16]} 33. Nc2 {[%emt 0:03:58]} c5 {[%emt 0:01:49]} 34. Be2 {[%emt 0:01:42]} axb3 {[%emt 0:02:48]} 35. axb3 {[%emt 0:00:05]} Rha8 {[%emt 0:00:06]} 36. Ra1 {[%emt 0:00:47]} Rxa1 {[%emt 0:00:11]} 37. Nxa1 {[%emt 0:00:21]} Nxe4 {[%emt 0:03:06]} 38. Bxb5 {[%emt 0:01:27]} Rg8 {[%emt 0:00:24]} 39. Nc2 {[%emt 0:01:10]} Rxg4 {[%emt 0:00:34]} 40. Rxg4 {[%emt 0:00:00]} Bxg4 {[%emt 0:00:01]} 41. Ne3 {[%emt 0:00:43]} Be6 {[%emt 0:01:26]} 42. Bc6 {[%emt 0:02:28]} Nf2 {[%emt 0:02:33]} 43. Kc2 {[%emt 0:00:26]} f5 {[%emt 0:01:44]} 44. b4 {[%emt 0:00:13]} f4 {[%emt 0:01:22]} 45. Nf1 {[%emt 0:00:59]} Kd6 {[%emt 0:01:35]} 46. Ba8 {[%emt 0:00:32]} c4 {[%emt 0:01:07]} 47. Nd2 {[%emt 0:00:13]} Bf5+ {[%emt 0:04:02]} 48. Kc1 {[%emt 0:00:14]} Bd3 {[%emt 0:00:12]} 49. h5 {[%emt 0:00:20]} e4 {[%emt 0:00:32]} 50. b5 {[%emt 0:00:48]} Kc5 {[%emt 0:00:02]} 51. Bc6 {[%emt 0:00:11]} Be2 $2 {[%emt 0:03:22]} (51... Kb6 52. Ba8 Kxb5) 52. Nxe4+ $2 {[%emt 0:01:15]} (52. Bxe4 {is the only way for White.} Bxh5 53. b6 Kxb6 54. Nxc4+ Kc5 55. Nd2) 52... Nxe4 {[%emt 0:00:02]} 53. Bxe4 {[%emt 0:00:07]} Bxh5 {[%emt 0:00:08]} 54. Bc6 {[%emt 0:00:29]} f3 {[%emt 0:03:08]} 55. Kd2 {[%emt 0:01:00]} f2 {[%emt 0:00:05]} 56. Bg2 {[%emt 0:00:28]} Kxb5 {[%emt 0:00:18]} 57. Bf1 {[%emt 0:00:56]} Bg6 {[%emt 0:01:16]} 58. Ke3 {[%emt 0:00:29]} Bd3 {[%emt 0:00:04]} 59. Bxd3 {[%emt 0:01:32]} cxd3 {[%emt 0:00:02]} 60. Kxf2 {[%emt 0:00:07]} Kc4 {[%emt 0:00:05]} 0-1

[Event "Maria Albulet Memorial 2017"]
[Site "Braila"]
[Date "2017.10.11"]
[Round "6"]
[White "Nastase, Andreea-Cristina"]
[Black "Makropoulou, Marina"]
[Result "0-1"]
[ECO "D31"]
[WhiteElo "1989"]
[BlackElo "2136"]
[Annotator "NA"]
[PlyCount "70"]
[EventDate "2017.??.??"]
[EventCountry "ROU"]
[SourceTitle "playchess.com"]
[Source "ChessBase"]
[SourceQuality "1"]
[TimeControl "40/5400+30:900+30"]

1. d4 {[%emt 0:00:00]} d5 {[%emt 0:00:08]} 2. c4 {[%emt 0:00:30]} e6 {[%emt 0:00:22]} 3. Nc3 {[%emt 0:00:03]} c6 {[%emt 0:01:04]} 4. cxd5 {[%emt 0:00:27]} exd5 {[%emt 0:00:17]} 5. Nf3 {[%emt 0:00:05]} Nf6 {[%emt 0:03:38]} 6. Bg5 {[%emt 0:00:05]} Be7 {[%emt 0:00:16]} 7. e3 {[%emt 0:01:11]} Bf5 {[%emt 0:00:43]} 8. Bd3 {[%emt 0:00:13]} Bxd3 {[%emt 0:02:56]} 9. Qxd3 {[%emt 0:00:05] LiveBook: 431 Games} Nbd7 {[%emt 0:00:57]} 10. O-O {[%emt 0:00:51]} O-O {[%emt 0:00:30]} 11. Rfd1 {[%emt 0:02:24]} Ne4 {[%emt 0:05:41]} 12. Bf4 {[%emt 0:02:28]} f5 $11 {[%emt 0:12:53]} 13. Rab1 {[%emt 0:05:46]} a5 {[%emt 0:07:05]} 14. a3 {[%emt 0:02:01]} Qe8 {[%emt 0:06:16]} 15. Ne5 {[%emt 0:06:46]} Bd6 {[%emt 0:05:43]} 16. Nxd7 {[%emt 0:04:10]} Qxd7 {[%emt 0:00:06]} 17. Bxd6 {[%emt 0:00:05]} Nxd6 {[%emt 0:02:32]} 18. b4 {[%emt 0:01:37]} axb4 {[%emt 0:00:50]} 19. axb4 {[%emt 0:00:06]} b5 {[%emt 0:03:04]} 20. Ra1 {[%emt 0:15:09]} Nc4 {[%emt 0:01:46]} 21. Qf1 {[%emt 0:02:55]} Qe7 {[%emt 0:04:34]} 22. Rxa8 {[%emt 0:02:05]} Rxa8 {[%emt 0:00:05]} 23. Ra1 {[%emt 0:00:05]} Re8 {[%emt 0:03:38]} 24. Na2 {[%emt 0:04:25]} h6 {[%emt 0:01:23]} 25. h3 {[%emt 0:01:03]} Ra8 {[%emt 0:01:18]} 26. Qb1 {[%emt 0:01:05]} Qe4 {[%emt 0:04:02]} 27. Qe1 {[%emt 0:01:53]} Qe7 {[%emt 0:15:39]} 28. Qb1 {[%emt 0:02:22]} Qe4 {[%emt 0:04:14]} 29. Qe1 {[%emt 0:00:41]} Qc2 {[%emt 0:00:36]} 30. Nc3 {[%emt 0:01:04]} Rxa1 {[%emt 0:00:42]} 31. Qxa1 {[%emt 0:00:04]} Kh7 {[%emt 0:00:59]} 32. g4 {[%emt 0:00:51]} Nd2 {[%emt 0:04:09]} 33. Kg2 {[%emt 0:01:28]} f4 {[%emt 0:02:16]} 34. Kh1 {[%emt 0:05:50]} fxe3 {[%emt 0:01:17]} 35. fxe3 {[%emt 0:00:07]} Qd3 {[%emt 0:00:45]} 0-1

[Event "Maria Albulet Memorial 2017"]
[Site "Braila"]
[Date "2017.10.11"]
[Round "6"]
[White "Patru, Alexandra-Ioana"]
[Black "Didiliuc, Dariana-Gabriela"]
[Result "0-1"]
[ECO "E63"]
[WhiteElo "1623"]
[BlackElo "1779"]
[Annotator "NA"]
[PlyCount "84"]
[EventDate "2017.??.??"]
[EventCountry "ROU"]
[SourceTitle "playchess.com"]
[Source "ChessBase"]
[SourceQuality "1"]
[TimeControl "40/5400+30:900+30"]

1. d4 {[%emt 0:00:00]} Nf6 {[%emt 0:00:12]} 2. Nf3 {[%emt 0:00:00]} g6 {[%emt 0:00:09]} 3. c4 {[%emt 0:00:00]} Bg7 {[%emt 0:00:11]} 4. Nc3 {[%emt 0:00:07]} O-O {[%emt 0:00:24]} 5. g3 {[%emt 0:00:06]} d6 {[%emt 0:00:19]} 6. Bg2 {[%emt 0:00:05]} Nc6 {[%emt 0:00:21]} 7. O-O {[%emt 0:01:09]} a6 {[%emt 0:00:31]} 8. h3 {[%emt 0:01:07]} Rb8 {[%emt 0:01:14]} 9. e4 {[%emt 0:15:26]} b5 {[%emt 0:01:27]} 10. Qd3 {[%emt 0:18:13]} Nb4 {[%emt 0:29:58]} 11. Qe2 {[%emt 0:01:32]} bxc4 {[%emt 0:01:41]} 12. Qxc4 {[%emt 0:13:15]} Nxe4 {[%emt 0:02:02]} 13. Qe2 {[%emt 0:10:30]} Nf6 {[%emt 0:04:38]} 14. a3 {[%emt 0:02:59]} Nbd5 {[%emt 0:02:01]} 15. Nd2 {[%emt 0:04:14]} Bb7 {[%emt 0:02:48]} 16. Nc4 {[%emt 0:06:15]} Qd7 {[%emt 0:11:39]} 17. Qc2 {[%emt 0:03:46]} Nxc3 {[%emt 0:01:20]} 18. Qxc3 {[%emt 0:03:29]} Bxg2 {[%emt 0:00:19]} 19. Kxg2 {[%emt 0:00:06]} Nd5 {[%emt 0:00:59]} 20. Qd3 {[%emt 0:00:41]} Qb5 {[%emt 0:01:34]} 21. a4 {[%emt 0:06:47]} Qc6 {[%emt 0:00:25]} 22. f3 {[%emt 0:02:06]} Rb4 {[%emt 0:00:25]} 23. Ne3 {[%emt 0:01:29]} Rxd4 {[%emt 0:03:20]} 24. Qb3 {[%emt 0:01:33]} e6 {[%emt 0:02:22]} 25. Nxd5 {[%emt 0:01:06]} Rxd5 {[%emt 0:00:15]} 26. Be3 {[%emt 0:00:24]} Qa8 {[%emt 0:00:57]} 27. Qc2 {[%emt 0:00:45]} c5 {[%emt 0:00:15]} 28. Rad1 {[%emt 0:00:20]} Rb8 {[%emt 0:00:16]} 29. b3 {[%emt 0:00:14]} Qb7 {[%emt 0:01:22]} 30. Rb1 {[%emt 0:00:10]} Qb4 {[%emt 0:01:46]} 31. Rfd1 {[%emt 0:00:38]} Rxd1 {[%emt 0:00:23]} 32. Qxd1 {[%emt 0:00:06]} d5 {[%emt 0:00:08]} 33. Bd2 {[%emt 0:00:56]} Bc3 {[%emt 0:00:21]} 34. Bxc3 {[%emt 0:00:13]} Qxc3 {[%emt 0:00:07]} 35. h4 {[%emt 0:00:18]} Qb4 {[%emt 0:00:56]} 36. Qe2 {[%emt 0:00:32]} c4 {[%emt 0:00:14]} 37. Qd1 {[%emt 0:00:34]} cxb3 {[%emt 0:00:18]} 38. Rb2 {[%emt 0:00:14]} Qxa4 {[%emt 0:00:29]} 39. Qc1 {[%emt 0:00:15]} Qb4 {[%emt 0:00:14]} 40. Qc7 {[%emt 0:00:00]} a5 {[%emt 0:00:51]} 41. Qc1 {[%emt 0:00:52]} a4 {[%emt 0:00:09]} 42. Rb1 {[%emt 0:00:10]} a3 {[%emt 0:00:08]} 0-1